Cogmind - Beta 13 @@@ ROGUE MODE // 2024.05.09 @ 09:56:37 Player: .fresh Result: Destroyed by S-27 Virus with Autogun Performance ------------- Evolutions (6) 3000 Regions Visited (23) 4600 Robots Destroyed (404) 2020 Value Destroyed (17232) 17232 Prototype IDs (20) 400 Alien Tech Used (0) 0 Bonus (2857) 2857 TOTAL SCORE: 30109 Bonus ------- High Alert Combat Kills 2640 Follower Combat Kills 793 Entered Garrisons 200 Used RIF Installer 500 Network Hubs Disabled 200 Met R17 at Cetus 500 Friendly Fire -1976 Cogmind --------- Core Integrity 0/1150 Matter 295/300 Energy 28/100 System Corruption 46% Temperature Cool (0) Movement Core (50) Location -4/Upper Caves Parts ------- > --- POWER (2) -------- (None) > --- PROPULSION (6) --- (None) > --- UTILITY (7) ------ (None) > --- WEAPON (4) ------- (None) > --- INVENTORY (5) ---- Makeshift Terrain Scan Processor Advanced Reaction Control System Improved Phase Shifter Advanced Variable Charge Gun Coil Gun Peak State ------------ > --- POWER ------------ Neutrino Core Light Antimatter Reactor > --- PROPULSION ------- Armored Medium Treads Enhanced Armored Medium Treads Centrium Heavy Treads Centrium Heavy Treads > --- UTILITY ---------- Advanced Cooling System Huge Storage Unit Medium Matter Pod Improved Sensor Array Improved Transmission Jammer Graphene Brace Advanced System Shield > --- WEAPON ----------- KE Penetrator KE Penetrator Railgun Advanced KE Penetrator > --- INVENTORY -------- Light Antimatter Reactor Improved Medium Treads Improved Medium Treads Improved Medium Treads Centrium Heavy Treads Centrium Wheel Improved Cooling System Authchip [Propulsion] Heavy Riot Gun Heavy Riot Gun Heavy Riot Gun Tesla Rifle Improved Arc Projector Advanced Variable Charge Gun Coil Gun Coil Gun Coil Gun Enhanced Coil Gun Mass Driver Smartbomb Launcher Fusion Bomb Launcher Great Maul Phasing Sabre [Rating: 134] Favorites ----------- Power Quantum Reactor Engine Improved Deuterium Engine Power Core Neutrino Core Reactor Quantum Reactor Propulsion Centrium Heavy Treads Treads Centrium Heavy Treads Leg Improved VSS Leg Wheel Wheel Utility High-capacity Storage Unit Device Improved Cooling System Storage High-capacity Storage Unit Processor Advanced Targeting Computer Hackware Advanced System Shield Protection Improved Medium Armor Plating Weapon KE Penetrator Energy Gun Heavy Riot Gun Energy Cannon Heavy Plasma Cannon Ballistic Gun KE Penetrator Ballistic Cannon Advanced Assault Cannon Launcher Micro-nuke Launcher Impact Weapon Power Maul Slashing Weapon Phasing Sabre Special Melee Weapon Improved Datajack Build | -11 -10 -9 -8 -8 -8 -7 -6 -6 -6 -6 -6 -6 -6 -5 -5 -5 -5 -5 -5 -4 -4 -4 -4 ------- Run | Yrd Mat Mat Mat Gar Mat Fac Fac Was Fac Ext Cet Arc Hub Fac Was Fac Upp Upp War Pro Fac Upp Upp Slots Evolved 12 | . . 2 2 . . 2 2 . . . . . . 2 . . . . . . 2 . . Power 1 | . . . . . . . 1 . . . . . . . . . . . . . . . . Propulsion 4 | . . 1 . . . 1 1 . . . . . . . . . . . . . 1 . . Utility 5 | . . 1 . . . 1 . . . . . . . 2 . . . . . . 1 . . Weapon 2 | . . . 2 . . . . . . . . . . . . . . . . . . . . Parts Attached 431 | 3 15 26 42 12 25 25 14 . 11 42 32 13 17 15 10 17 11 5 . . 76 13 7 Power 36 | . 1 4 3 2 2 2 2 . 2 3 2 1 1 1 1 . . 1 . . 6 2 . Engine 15 | . 1 3 . 1 2 2 2 . 1 2 1 . . . . . . . . . . . . Core 12 | . . 1 3 1 . . . . 1 1 . 1 . 1 . . . . . . 2 1 . Reactor 9 | . . . . . . . . . . . 1 . 1 . 1 . . 1 . . 4 1 . Propulsion 119 | 2 8 10 10 4 12 11 6 . . 18 12 1 2 1 1 . 1 1 . . 14 5 . Treads 69 | 1 4 9 9 1 6 2 . . . 5 6 1 2 1 1 . 1 1 . . 14 5 . Leg 41 | . . . . 3 6 7 6 . . 13 6 . . . . . . . . . . . . Wheel 9 | 1 4 1 1 . . 2 . . . . . . . . . . . . . . . . . Hover . | . . . . . . . . . . . . . . . . . . . . . . . . Flight . | . . . . . . . . . . . . . . . . . . . . . . . . Utility 102 | . 3 4 9 3 5 8 1 . 4 9 4 6 6 6 1 8 6 . . . 14 3 2 Device 45 | . 1 . 2 1 2 3 1 . . 4 2 4 5 3 . 4 5 . . . 6 . 2 Storage 9 | . 1 . 1 1 1 . . . . 1 . . . . . 1 . . . . 2 1 . Processor 7 | . 1 . . . . 2 . . 2 . . . . . . . . . . . . 2 . Hackware 3 | . . . . . . . . . . . . . . . . 1 . . . . 2 . . Protection 38 | . . 4 6 1 2 3 . . 2 4 2 2 1 3 1 2 1 . . . 4 . . Artifact . | . . . . . . . . . . . . . . . . . . . . . . . . Weapon 174 | 1 3 8 20 3 6 4 5 . 5 12 14 5 8 7 7 9 4 3 . . 42 3 5 Energy Gun 22 | . . . 4 2 1 . . . . . 2 . 1 . 1 1 1 2 . . 4 1 2 Energy Cannon 5 | . . . . . . 1 . . . 1 1 . 1 1 . . . . . . . . . Ballistic Gun 75 | 1 3 7 10 . . . 4 . 1 2 5 3 3 4 3 5 2 . . . 22 . . Ballistic Cannon 14 | . . . . . 3 1 . . 1 5 2 . 1 . 1 . . . . . . . . Launcher 22 | . . 1 3 . . . . . . . 2 . 1 . 2 1 1 1 . . 9 . 1 Special Weapon . | . . . . . . . . . . . . . . . . . . . . . . . . Impact Weapon 11 | . . . 2 1 2 1 . . 1 3 1 . . . . . . . . . . . . Slashing Weapon 24 | . . . . . . 1 1 . 2 1 1 2 1 2 . 2 . . . . 7 2 2 Piercing Weapon . | . . . . . . . . . . . . . . . . . . . . . . . . Special Melee Weapon 1 | . . . 1 . . . . . . . . . . . . . . . . . . . . Unidentified Prototypes 10 | . . . 2 . . . . . 1 . 4 . . 1 . . . . . . 2 . . Corrupted Parts 5 | . . . . . . 1 . . . . 2 . . . . . . . . . 2 . . System Corruption 38 | . . . . . . 8 . . . . 18 . . . . . . . . . 12 . . Parts Lost 148 | . 2 12 19 6 6 12 . . 3 8 9 . 4 . . 3 5 3 . . 31 10 15 Power 18 | . . 2 2 . 2 . . . . 2 2 . . . . . . 1 . . 5 . 2 Propulsion 44 | . 1 6 6 4 . 5 . . . 1 4 . 1 . . . 1 1 . . 6 6 2 Utility 31 | . . 1 2 1 . 3 . . 2 2 1 . 1 . . 1 2 . . . 9 1 5 Weapon 55 | . 1 3 9 1 4 4 . . 1 3 2 . 2 . . 2 2 1 . . 11 3 6 Highest Loss Streak 7 | . 1 6 7 3 3 7 . . 2 4 4 . 1 . . 1 4 3 . . 7 6 6 To Critical Strikes 2 | . . . . . . . . . . 1 1 . . . . . . . . . . . . Average Slot Usage (%) 86 | . 97 99 98 95 98 98 97 93 90 97 91 85 85 88 78 69 77 82 82 82 84 57 61 Engine 3 | . 14 10 . 5 8 7 10 6 7 2 5 1 . . . . . . . . . . . Core 2 | . . . 7 3 . . . . . 9 . 4 3 . 1 . . . . . 3 2 3 Reactor 3 | . . . . . . . . . . . 1 6 9 10 9 11 11 11 11 11 5 2 3 Treads 15 | . 15 31 26 5 5 12 . . . 1 3 18 20 17 17 17 16 17 17 17 22 19 9 Leg 7 | . . . . 17 21 9 33 33 33 31 26 1 . . . . . . . . . . . Wheel 1 | . 12 1 . 2 . 7 . . . . . . . . . . . . . . . . . Device 8 | . 2 . . 11 10 13 13 13 7 5 6 6 6 16 10 3 13 17 17 17 18 7 11 Storage 7 | . 14 11 9 9 9 7 6 6 6 6 6 6 6 5 5 5 5 5 5 5 7 12 8 Processor 4 | . 9 11 9 4 . 2 6 6 10 11 6 6 6 2 . . . . . . . 3 9 Protection 4 | . . 11 8 . 7 6 . . . . 5 4 5 8 7 4 4 5 5 5 3 . . Energy Gun 3 | . . . 2 32 20 . . . . . 2 2 . . . . 1 9 17 17 4 . . Ballistic Gun 14 | . 27 21 29 . . . 19 20 16 11 11 19 22 19 21 21 21 12 5 5 14 2 . Ballistic Cannon 2 | . . . . . 5 19 . . . 6 5 . . . . . . . . . . . . Impact Weapon 1 | . . . 1 3 8 4 . . . 1 2 . . . . . . . . . . . . Slashing Weapon 1 | . . . . . . 2 3 6 5 2 . 4 . 2 . 1 . . . . 1 3 11 Naked Turns . | . . . . . . . . . . . . . . . . . . . . . . . . Heaviest Build 184 | 14 32 36 46 45 79 86 90 75 85 89 108 105 115 129 150 184 183 160 149 149 151 119 141 Greatest Support 225 | 10 40 60 60 40 60 80 95 75 75 90 160 183 183 180 180 170 180 180 180 180 225 215 150 Greatest Overweight (x) 7 | 1 3 1 3 3 1 7 1 . 1 1 1 . . . . 1 1 . . . . 1 1 Average Overweight (x) . | 1 2 . . . . 2 . . . . . . . . . . . . . . . . . Largest Inventory Capacity 25 | 8 15 15 15 15 20 20 20 20 20 20 20 20 20 20 20 25 25 25 25 25 25 25 25 Average Capacity 20 | 8 14 15 15 15 19 20 20 20 20 20 20 20 20 20 20 24 25 25 25 25 25 25 25 Most Carried 25 | 6 15 15 15 15 20 20 20 20 20 20 20 20 20 20 20 25 25 22 18 18 25 21 19 Average Carried 19 | 6 14 13 14 14 18 19 19 20 19 19 19 19 19 18 19 23 20 20 18 18 23 18 18 Final Capacity 25 | 8 15 15 15 15 20 20 20 20 20 20 20 20 20 20 20 25 25 25 25 25 25 25 5 Final Carried 25 | 6 14 15 14 15 20 20 20 20 19 20 20 20 19 20 20 25 20 18 18 18 18 17 5 Class Distribution -------------------- 32% | Scavenger-Tank 22% | Scavenger-Gunner 12% | Mutant 9% | Gunner 8% | Tank 8% | Scavenger-Mutant 3% | Derelict-Mutant Dominant Class ---------------- Mutant | -10/Materials Scavenger-Mutant | -9/Materials Scavenger-Gunner | -8/Materials Scavenger-Gunner | -8/Garrison Tank | -8/Materials Scavenger-Tank | -7/Factory Gunner | -6/Factory Gunner | -6/Waste Gunner | -6/Factory Scavenger-Gunner | -6/Extension Scavenger-Gunner | -6/Cetus Scavenger-Gunner | -6/Archives Scavenger-Gunner | -6/Hub_04(d) Scavenger-Tank | -5/Factory Scavenger-Tank | -5/Waste Scavenger-Tank | -5/Factory Scavenger-Tank | -5/Upper Caves Scavenger-Tank | -5/Upper Caves Scavenger-Tank | -5/Warlord Scavenger-Tank | -4/Proximity Caves Scavenger-Tank | -4/Factory Mutant | -4/Upper Caves Derelict-Mutant | -4/Upper Caves Resources | -11 -10 -9 -8 -8 -8 -7 -6 -6 -6 -6 -6 -6 -6 -5 -5 -5 -5 -5 -5 -4 -4 -4 -4 ----------- Run | Yrd Mat Mat Mat Gar Mat Fac Fac Was Fac Ext Cet Arc Hub Fac Was Fac Upp Upp War Pro Fac Upp Upp Matter Collected 13414 | 200 550 887 1472 100 196 1143 10 88 401 1244 927 281 959 283 287 1058 543 202 . 9 2078 359 137 Remotely . | . . . . . . . . . . . . . . . . . . . . . . . . Salvage Created 17209 | . 844 1236 2028 537 631 1108 . 26 392 799 618 592 1643 283 118 2214 523 428 . . 3070 60 59 Parts 877 | . 45 80 116 23 27 48 . 2 13 29 21 36 86 14 6 130 30 13 . . 152 4 2 Haulers Intercepted 9 | . 2 2 2 . . 3 . . . . . . . . . . . . . . . . . Recyclers Shooed 10 | . . . 1 . . 1 . . . . . . . . . 3 . . . . 5 . . Parts Field Recycled . | . . . . . . . . . . . . . . . . . . . . . . . . Retrieved Matter . | . . . . . . . . . . . . . . . . . . . . . . . . Parts Self-Destructed 45 | . . . . . . . . . . . . . . . . . 24 14 . . . 5 2 Prevented 6 | . . . . . . . . . . . . . . . . . . 5 . 1 . . . Kills | -11 -10 -9 -8 -8 -8 -7 -6 -6 -6 -6 -6 -6 -6 -5 -5 -5 -5 -5 -5 -4 -4 -4 -4 ------- Run | Yrd Mat Mat Mat Gar Mat Fac Fac Was Fac Ext Cet Arc Hub Fac Was Fac Upp Upp War Pro Fac Upp Upp Combat Hostiles Destroyed 309 | . 14 29 49 11 13 24 . 1 5 13 14 4 21 4 . 32 16 10 . . 47 1 1 Melee 16 | . . . 2 1 1 6 . . . 2 . . . . . 1 . . . . 1 1 1 Guns 199 | . 14 26 34 8 6 . . 1 3 10 6 4 18 4 . 26 8 5 . . 26 . . Cannons 19 | . . . . . 4 12 . . . 1 1 . 1 . . . . . . . . . . AOE 65 | . . 3 13 . . 3 . . . . 7 . 2 . . 5 8 5 . . 19 . . Classes Destroyed 19 | . 5 4 4 . . 3 . . . 1 . 1 1 . . . . . . . . . . Worker 29 | . . 2 1 . . 6 . . . 1 . . 7 . . 10 . . . . 2 . . Builder 17 | . . 2 2 . . . . . 1 1 . . 7 . . 1 . . . . 3 . . Tunneler 3 | . . . 1 . . . . . . . . . . . . . . . . . 2 . . Hauler 9 | . 2 2 2 . . 3 . . . . . . . . . . . . . . . . . Recycler 14 | . 2 1 . . 1 2 . . 1 1 . . 2 . . 2 . . . . 2 . . Mechanic 2 | . . . . . . 1 . . . . . . . . . . . . . . 1 . . Operator 9 | . . . . . . . . . . . . 8 . . . . . . . . 1 . . Watcher 9 | . 1 . . . . . . . . . 1 . . . . 3 . . . . 4 . . Swarmer 41 | . 2 10 7 . . 4 . 1 . . 4 . 3 . . 4 6 . . . . . . Grunt 132 | . 12 11 28 9 6 5 . . 4 4 3 . 7 . . 14 6 7 . . 16 . . Brawler 7 | . . 1 4 . . . . . . . . . 1 . . 1 . . . . . . . Duelist 8 | . . . . . . 1 . . . . . . 1 . . 2 . 2 . . 2 . . Protector 3 | . . . 2 . . . . . . . . . . . . . . . . . 1 . . Sentry 52 | . . 7 6 2 5 7 . . 1 6 . 4 4 2 . . 1 1 . . 6 . . Specialist 1 | . . . 1 . . . . . . . . . . . . . . . . . . . . Hunter 27 | . . . 1 . 2 3 . . . 2 . . 3 . . 2 3 . . . 10 1 . Programmer 28 | . . . . . . 4 . . . . . . 1 2 . 9 . . . . 11 . 1 Heavy 2 | . . . . . . . . . . . . . 1 . . . . . . . 1 . . Behemoth 1 | . . . . . . . . . . 1 . . . . . . . . . . . . . Cetus Guard 7 | . . . . . . . . . . . 7 . . . . . . . . . . . . Wasp 3 | . . . . . . . . . . . . . . . 3 . . . . . . . . Thug 1 | . . . . . . . . . . . . . . . 1 . . . . . . . . Savage 1 | . . . . . . . . . . . 1 . . . . . . . . . . . . Best Kill Streak 13 | . 4 9 12 6 4 4 . 1 5 3 7 2 11 2 . 10 13 7 . . 9 1 1 Combat Bots Only 13 | . 4 6 11 6 4 4 . 1 5 3 7 2 7 2 . 7 13 7 . . 9 1 1 Max Kills in Single Turn 5 | . 1 3 5 2 1 2 . 1 1 2 3 1 4 1 4 4 3 3 . . 4 1 1 Gunslinging 1 | . . . 1 1 . . . . . . . . 1 . . . . 1 . . . . . Exploded 4 | . . 2 4 . . 2 . . . . 3 . 2 . . 2 3 3 . . 3 . . Melee 1 | . . . 1 1 1 1 . . . 1 . . . . . 1 . . . . 1 1 1 Uniques/NPCs Destroyed . | . . . . . . . . . . . . . . . . . . . . . . . . Combat | -11 -10 -9 -8 -8 -8 -7 -6 -6 -6 -6 -6 -6 -6 -5 -5 -5 -5 -5 -5 -4 -4 -4 -4 -------- Run | Yrd Mat Mat Mat Gar Mat Fac Fac Was Fac Ext Cet Arc Hub Fac Was Fac Upp Upp War Pro Fac Upp Upp Hostile Shots Fired 2839 | . 69 211 242 67 109 320 . 3 79 248 90 21 191 29 . 172 98 28 . . 552 174 136 Missed 760 | . 19 60 55 17 27 129 . 1 14 85 21 5 35 7 . 36 22 7 . . 133 52 35 Damage Taken 33250 | . 548 1860 3048 803 1238 2354 . 32 797 1663 1767 351 1526 240 92 2397 1596 469 . . 8423 1752 2294 Core 2830 | . 116 232 210 151 93 207 . 18 116 135 139 . 78 11 . 15 96 53 . . 622 321 217 Absorbed by Shields 2092 | . . . . . . . . . . 69 . . 563 253 . . 94 . . . 856 . 257 Reduced by Siege Mode 727 | . . . . . . . . . . . . 18 131 15 . 113 75 5 . . 370 . . Ignored by Resistances 523 | . . . . . . . . . . . . . . . . 523 . . . . . . . Regen/Repaired (Parts) 614 | . . . . . . 65 . . . . . . . . 549 . . . . . . . . Core Remaining (%) 58 | 100 53 42 . . 17 70 . . . . . . 42 . . . . . . 82 . . . Volleys Fired 726 | . 47 94 89 17 30 46 1 2 12 44 33 12 68 13 . 69 17 8 . . 124 . . Largest 4 | . 2 2 4 4 3 3 3 3 4 4 4 4 4 4 . 4 4 4 . . 4 . . Hottest 260 | . 46 46 244 252 187 161 90 90 134 194 205 230 152 132 . 132 132 213 . . 260 . . Shots Fired 2099 | . 95 186 313 59 85 125 3 6 41 154 92 38 193 42 1 226 52 23 . 1 363 1 . Gun 1784 | . 95 184 304 59 59 . 3 6 36 110 55 38 163 40 . 223 48 20 . 1 340 . . Cannon 264 | . . . . . 26 125 . . 5 44 33 . 29 2 . . . . . . . . . Launcher 51 | . . 2 9 . . . . . . . 4 . 1 . 1 3 4 3 . . 23 1 . Special . | . . . . . . . . . . . . . . . . . . . . . . . . Kinetic 1785 | . 95 184 289 . 26 112 3 6 41 149 71 30 168 40 . 210 48 13 . . 300 . . Thermal 242 | . . . 15 59 59 13 . . . 5 17 8 24 2 . 13 . . . . 27 . . Explosive 51 | . . 2 9 . . . . . . . 4 . 1 . 1 3 4 3 . . 23 1 . Electromagnetic 21 | . . . . . . . . . . . . . . . . . . 7 . 1 13 . . Robot Hit Streak 44 | . 15 16 16 16 14 10 . 2 11 18 16 16 44 26 . 19 19 7 . . 25 . . Robot Miss Streak 7 | . 2 5 5 1 3 3 . 1 2 6 5 1 6 2 1 6 5 1 . . 7 . . Penetration Max 2 | . . . . . . . . . . . . 1 1 . . 2 . . . . 1 . . Secondary Targets 36 | . 2 4 5 4 . . . . . 2 . 1 2 1 . 5 1 3 . . 6 . . Max Gunslinging Chain 2 | . 1 1 1 2 . . . . . 1 . 1 1 1 . 1 1 1 . . 1 . . Shots Hit Robots 1451 | . 68 132 197 45 63 98 . 3 38 105 71 40 125 32 . 137 26 17 . . 240 6 8 Core Hits 791 | . 28 51 108 18 19 40 . 1 12 34 54 17 68 10 16 89 26 22 . . 172 4 2 Critical Kills 30 | . . . . . . 1 . . . 1 1 1 6 . . 10 4 2 . . 4 . . Critical Parts Destroyed 64 | . . 2 3 . . 1 . . 1 1 1 5 7 3 . 18 1 1 . . 20 . . Critical Strikes 117 | . . 2 3 5 4 7 . . 1 6 3 7 13 3 . 29 5 3 . . 25 1 . Burn 9 | . . . . 5 4 . . . . . . . . . . . . . . . . . . Destroy 91 | . . 2 . . . . . . . 2 3 7 13 3 . 29 5 3 . . 24 . . Blast 7 | . . . . . . 4 . . . 3 . . . . . . . . . . . . . Smash 6 | . . . 3 . . 2 . . 1 . . . . . . . . . . . . . . Sever 4 | . . . . . . 1 . . . 1 . . . . . . . . . . 1 1 . Melee Attacks 264 | . . . 15 1 3 37 4 5 9 33 34 10 3 4 . 10 . . . . 20 9 67 Impact 83 | . . . 12 1 3 19 . . 4 11 33 . . . . . . . . . . . . Slashing 178 | . . . . . . 18 4 5 5 22 1 10 3 4 . 10 . . . . 20 9 67 Piercing . | . . . . . . . . . . . . . . . . . . . . . . . . Sneak Attacks 21 | . . . 1 . . 5 . . 2 1 . 9 . . . . . . . . 3 . . Combat Hostiles . | . . . . . . . . . . . . . . . . . . . . . . . . Follow-up Attacks 4 | . . . . . . . . . . . . . . . . . . . . . . . 4 Damage Inflicted 50142 | . 1088 2212 5176 895 1331 4410 . 73 1139 2821 2509 1929 3995 856 1279 4686 1772 1253 . . 12163 260 295 Guns 26520 | . 1088 1951 2898 853 801 . . 73 713 1866 1125 886 3467 856 . 3436 326 256 . . 5925 . . Cannons 4297 | . . . . . 442 2214 . . 72 649 819 . 101 . . . . . . . . . . Explosions 14635 | . . 261 2173 . . 819 . . . . 513 . 427 . 1279 1157 1446 997 . . 5563 . . Melee 4609 | . . . 90 36 88 1377 . . 354 306 52 1043 . . . 64 . . . . 666 238 295 Ramming 81 | . . . 15 6 . . . . . . . . . . . 29 . . . . 9 22 . Kinetic 27553 | . 1088 1951 2816 . 442 1948 . 73 785 2420 1491 671 3568 856 . 3436 326 166 . . 5516 . . Thermal 4273 | . . . 82 853 801 821 . . . 95 453 215 . . . 43 240 49 . . 621 . . Explosive 12844 | . . 261 2010 . . 264 . . . . 513 . 226 . 1279 1114 1206 948 . . 5023 . . Electromagnetic 782 | . . . 163 . . . . . . . . . 201 . . . . 90 . . 328 . . Impact 1001 | . . . 90 36 88 621 . . 166 . . . . . . . . . . . . . . Slashing 3608 | . . . . . . 756 . . 188 306 52 1043 . . . 64 . . . . 666 238 295 Piercing . | . . . . . . . . . . . . . . . . . . . . . . . . Highest Corruption 46 | . 3 . 3 3 5 10 . . . . 18 18 2 7 7 7 7 7 7 7 26 26 46 Average Corruption 10 | . 2 . 2 3 4 4 . . . . 17 13 1 5 7 7 7 7 7 7 7 26 29 Corruption Purged 18 | . . . . . . . . . . . . 18 . . . . . . . . . . . Corruption Blocked 1 | . . . . . . . . . . . . . . . . 1 . . . . . . . Effects 371 | . 4 . 7 5 23 24 . . . . 12 22 1 3 9 53 18 15 2 11 58 61 43 Message Errors 86 | . 1 . 1 . 3 7 . . . . 4 7 . . 4 9 3 5 . 2 12 19 9 Matter Fused 79 | . . . 2 . 10 6 . . . . 1 3 . . . 16 3 6 . 2 10 11 9 Heat Flow Errors 47 | . . . . . 1 4 . . . . 2 1 . 1 2 6 3 2 1 2 13 8 1 Energy Discharges 52 | . 1 . . . 2 2 . . . . 2 5 1 1 . 11 5 . . 1 6 8 7 Parts Rejected 4 | . . . 1 . . . . . . . . . . . . 1 . . . . 1 1 . Parts Fused 3 | . . . . . . . . . . . . 1 . . . 1 . . . 1 . . . Data Loss (minor) 47 | . 1 . 2 2 4 4 . . . . 1 1 . 1 1 5 2 2 . 1 5 7 8 Data Loss (major) 13 | . . . 1 . 1 . . . . . 1 . . . 1 1 . . 1 1 1 2 3 Misfires 16 | . 1 . . 2 2 . . . . . . 2 . . 1 3 1 . . 1 2 1 . Alerts 8 | . . . . 1 . . . . . . . . . . . . . . . . . 3 4 Misdirections 5 | . . . . . . . . . . . . . . . . . . . . . 2 1 2 Weapon Failures 11 | . . . . . . 1 . . . . 1 2 . . . . 1 . . . 6 . . Overload Shots . | . . . . . . . . . . . . . . . . . . . . . . . . Overflow Damage 1595 | . . 11 108 . 20 424 . . 154 12 . 335 26 . 19 62 82 25 . . 306 7 4 Projectiles 89 | . . . . . 19 58 . . . 12 . . . . . . . . . . . . . Explosions 527 | . . 11 18 . . 111 . . . . . . 26 . 19 62 82 25 . . 173 . . Melee 979 | . . . 90 . 1 255 . . 154 . . 335 . . . . . . . . 133 7 4 Knockbacks 20 | . . . . . 9 8 . . 2 1 . . . . . . . . . . . . . Impact 4 | . . . . . 1 3 . . . . . . . . . . . . . . . . . Kinetic 14 | . . . . . 7 5 . . 1 1 . . . . . . . . . . . . . Secondary 2 | . . . . . 1 . . . 1 . . . . . . . . . . . . . . Self-Inflicted Damage 1838 | . . . 230 . . 304 . . . . . . 100 . 93 91 281 15 . . 724 . . Shots 33 | . . . 8 . . 5 . . . . . . 1 . 1 1 4 1 . . 12 . . Rammed 13 | . . . 1 2 . . . . . . . . . . . 6 . . . . 2 2 . Targets Rammed 14 | . . . 2 2 . . . . . . . . . . . 6 . . . . 2 2 . Kicked . | . . . . . . . . . . . . . . . . . . . . . . . . Crushed 1 | . . . 1 . . . . . . . . . . . . . . . . . . . . Highest Temperature 580 | . 89 116 303 580 417 231 . 35 404 419 352 387 524 241 141 273 223 160 116 198 535 260 251 Average Temperature 85 | . 22 29 61 186 93 40 . 18 155 135 167 112 148 31 55 44 28 56 58 110 130 100 137 Received Heat Transfer 6342 | . 309 678 1395 486 657 456 . . 243 312 192 27 214 32 . 504 177 126 . . 490 18 26 Effects 37 | . . . 3 4 2 . . . 3 5 5 . 7 . . . . . . . 8 . . Shutdowns 9 | . . . . . . . . . 1 2 . . 3 . . . . . . . 3 . . Energy Bleed 7 | . . . . . . . . . . 1 3 . 2 . . . . . . . 1 . . Interference 11 | . . . 3 1 2 . . . 2 . 2 . 1 . . . . . . . . . . Short Circuit 6 | . . . . 2 . . . . . 1 . . 1 . . . . . . . 2 . . Damage (minor) 3 | . . . . 1 . . . . . 1 . . . . . . . . . . 1 . . Damage (core) 1 | . . . . . . . . . . . . . . . . . . . . . 1 . . Siege Activations 42 | . . . . . . . . . . . 1 3 6 3 . 9 4 2 . . 14 . . Total Turns 672 | . . . . . . . . . . . 3 36 116 48 . 132 46 22 . . 269 . . Longest Duration 51 | . . . . . . . . . . . 3 17 40 23 . 30 26 11 . . 51 . . Robots Corrupted 1 | . . . . . . . . . . . . . . . . . . . . . 1 . . Combat Hostiles 1 | . . . . . . . . . . . . . . . . . . . . . 1 . . Parts Fried 9 | . . . . . . 4 . . 3 . . . 1 . . . . 1 . . . . . Impact Corruptions 15 | . . . 3 . 1 8 . . 2 . . . . . . . . . . . . 1 . Robots Melted 3 | . . . . 2 1 . . . . . . . . . . . . . . . . . . Combat Hostiles 3 | . . . . 2 1 . . . . . . . . . . . . . . . . . . Parts Melted 14 | . . . . 3 8 1 . . . 1 . . . . . . . . . . 1 . . Heat Transferred 6705 | . . . 148 1998 1924 683 . . . 150 644 296 . . . 50 240 50 . . 522 . . Parts Sabotaged 2 | . . . . . . . . . . . . . . . . . . . . . 2 . . Parts Stolen . | . . . . . . . . . . . . . . . . . . . . . . . . Parts Stripped . | . . . . . . . . . . . . . . . . . . . . . . . . Power Chain Reactions 4 | . . . . . . . . . . . . . . . . . . 1 . . 3 . . Alert | -11 -10 -9 -8 -8 -8 -7 -6 -6 -6 -6 -6 -6 -6 -5 -5 -5 -5 -5 -5 -4 -4 -4 -4 ------- Run | Yrd Mat Mat Mat Gar Mat Fac Fac Was Fac Ext Cet Arc Hub Fac Was Fac Upp Upp War Pro Fac Upp Upp Peak Influence 1652 | . 252 629 921 798 677 476 257 127 144 316 267 254 682 522 142 1035 . . . . 1652 . . Initial 598 | . . 105 250 598 388 43 223 89 88 . 92 46 20 333 112 99 . . . . . . . Average 310 | . 106 470 618 710 323 245 235 115 100 185 68 149 194 387 122 308 . . . . 385 . . Maximum Alert Level 5 | . 1 2 3 3 2 2 1 . . 1 1 1 2 2 . 3 . . . . 5 . . Low Security (%) 46 | 100 83 8 . . 43 35 . 100 100 57 97 51 56 . 100 48 . . . . 59 . . Level 1 22 | . 16 16 12 . 8 44 100 . . 42 2 48 29 66 . 20 . . . . 9 . . Level 2 20 | . . 75 51 34 47 19 . . . . . . 13 33 . 19 . . . . 7 . . Level 3 8 | . . . 35 65 . . . . . . . . . . . 12 . . . . 9 . . Level 4 2 | . . . . . . . . . . . . . . . . . . . . . 13 . . Level 5 . | . . . . . . . . . . . . . . . . . . . . . 1 . . High Security . | . . . . . . . . . . . . . . . . . . . . . . . . Max Security . | . . . . . . . . . . . . . . . . . . . . . . . . Squads Dispatched 68 | . 3 2 10 . 1 11 . . . 2 . . 6 1 . 13 . 1 . . 18 . . Investigation 17 | . 2 1 3 . 1 4 . . . 1 . . . . . 4 . . . . 1 . . Extermination 13 | . . . . . . 3 . . . . . . . 1 . 4 . . . . 5 . . Reinforcement 19 | . 1 1 3 . . 1 . . . 1 . . 4 . . 3 . . . . 5 . . Assault 11 | . . . 4 . . . . . . . . . 1 . . 2 . 1 . . 3 . . Garrison 8 | . . . . . . 3 . . . . . . 1 . . . . . . . 4 . . Intercept . | . . . . . . . . . . . . . . . . . . . . . . . . Searches Triggered . | . . . . . . . . . . . . . . . . . . . . . . . . Construction Impeded 5 | . . . . . . . . . . 1 . . 2 . . 1 . . . . 1 . . Haulers Reinforced 3 | . . . . . . 1 . . . . . . 1 . . . . . . . 1 . . Active Scanning Responses . | . . . . . . . . . . . . . . . . . . . . . . . . Cargo Convoy Interrupts 1 | . . . . . . . . . . . . . . . . 1 . . . . . . . Stealth | -11 -10 -9 -8 -8 -8 -7 -6 -6 -6 -6 -6 -6 -6 -5 -5 -5 -5 -5 -5 -4 -4 -4 -4 --------- Run | Yrd Mat Mat Mat Gar Mat Fac Fac Was Fac Ext Cet Arc Hub Fac Was Fac Upp Upp War Pro Fac Upp Upp Distress Signals 29 | . 1 6 2 . 3 . . . . 2 2 . 3 . . 5 . . . . 5 . . Communications Jammed 20 | . . . . . . . . . . . . . . . . . . . . . 20 . . Distress Signals 18 | . . . . . . . . . . . . . . . . . . . . . 18 . . Times Spotted 471 | . 21 40 77 11 17 27 1 7 6 24 18 15 25 4 . 60 15 15 . . 77 3 8 Peak Tracking Total 12 | . 7 8 12 6 5 5 1 6 4 6 5 2 5 2 . 8 11 11 . . 10 2 5 Tactical Retreats 26 | . . 1 4 . 1 . . 1 . . . . 1 . . 6 . 3 . . 6 1 2 Traps | -11 -10 -9 -8 -8 -8 -7 -6 -6 -6 -6 -6 -6 -6 -5 -5 -5 -5 -5 -5 -4 -4 -4 -4 ------- Run | Yrd Mat Mat Mat Gar Mat Fac Fac Was Fac Ext Cet Arc Hub Fac Was Fac Upp Upp War Pro Fac Upp Upp Traps Triggered 12 | . 1 . 2 . 2 4 1 . . . . . . 1 . 1 . . . . . . . Indirectly 1 | . . . 1 . . . . . . . . . . . . . . . . . . . . Trap Hack Attempts . | . . . . . . . . . . . . . . . . . . . . . . . . Triggered . | . . . . . . . . . . . . . . . . . . . . . . . . Disarmed 4 | . . . . . . . . . . . . . 4 . . . . . . . . . . Reprogrammed . | . . . . . . . . . . . . . . . . . . . . . . . . Reused . | . . . . . . . . . . . . . . . . . . . . . . . . Traps Extracted . | . . . . . . . . . . . . . . . . . . . . . . . . Installed . | . . . . . . . . . . . . . . . . . . . . . . . . Triggered 5 | . . . . . . . . . . . . . . . . 1 . 2 . 2 . . . Machines | -11 -10 -9 -8 -8 -8 -7 -6 -6 -6 -6 -6 -6 -6 -5 -5 -5 -5 -5 -5 -4 -4 -4 -4 ---------- Run | Yrd Mat Mat Mat Gar Mat Fac Fac Was Fac Ext Cet Arc Hub Fac Was Fac Upp Upp War Pro Fac Upp Upp Machines Disabled 71 | . . 1 9 . 2 12 1 . . 1 2 3 6 . . 8 8 1 . . 17 . . Max in Single Turn 4 | . . 1 2 . 1 4 1 . . 1 1 1 2 . . 1 3 1 . . 4 . . Garrison Access 2 | . . . . . . . . . 1 . . . 1 . . . . . . . . . . Network Hub 1 | . . . . . . . . . . . . . 1 . . . . . . . . . . Energy Cycler 1 | . . . . . . . . . . 1 . . . . . . . . . . . . . Machines Repaired . | . . . . . . . . . . . . . . . . . . . . . . . . Machines Dismantled . | . . . . . . . . . . . . . . . . . . . . . . . . Machines Sabotaged . | . . . . . . . . . . . . . . . . . . . . . . . . Overloaded Fab Kills . | . . . . . . . . . . . . . . . . . . . . . . . . Hacking | -11 -10 -9 -8 -8 -8 -7 -6 -6 -6 -6 -6 -6 -6 -5 -5 -5 -5 -5 -5 -4 -4 -4 -4 --------- Run | Yrd Mat Mat Mat Gar Mat Fac Fac Was Fac Ext Cet Arc Hub Fac Was Fac Upp Upp War Pro Fac Upp Upp Machines Accessed 75 | . 7 7 8 2 4 6 . . 7 8 2 1 2 4 . 8 . . . . 9 . . Terminals 53 | . 5 5 6 2 4 4 . . 3 8 2 . 1 2 . 5 . . . . 6 . . Fabricators 6 | . . . . . . 1 . . 1 . . . . . . 2 . . . . 2 . . Repair Stations 3 | . . . . . . 1 . . 1 . . . . . . . . . . . 1 . . Recycling Units 6 | . 2 1 1 . . . . . 1 . . . . 1 . . . . . . . . . Scanalyzers 3 | . . 1 . . . . . . . . . . . 1 . 1 . . . . . . . Garrison Access 3 | . . . 1 . . . . . 1 . . . 1 . . . . . . . . . . Total Hacks 209 | . 19 16 20 3 12 10 . . 13 15 2 4 5 11 . 55 . . . . 24 . . Successful 95 | . 5 8 11 . 7 3 . . 4 6 1 4 4 5 . 27 . . . . 10 . . Failed 114 | . 14 8 9 3 5 7 . . 9 9 1 . 1 6 . 28 . . . . 14 . . Catastrophic 24 | . . 1 1 1 1 5 . . 1 . 1 . . 1 . 5 . . . . 7 . . Database Lockouts . | . . . . . . . . . . . . . . . . . . . . . . . . Manual 103 | . 16 10 14 1 8 2 . . 5 . . . 2 3 . 32 . . . . 10 . . Terminals 150 | . 15 12 15 3 12 6 . . 8 15 2 . 4 4 . 38 . . . . 16 . . Fabricators 14 | . . . . . . 2 . . 1 . . . . . . 5 . . . . 6 . . Repair Stations 6 | . . . . . . 2 . . 2 . . . . . . . . . . . 2 . . Recycling Units 14 | . 4 2 3 . . . . . 1 . . . . 4 . . . . . . . . . Scanalyzers 17 | . . 2 . . . . . . . . . . . 3 . 12 . . . . . . . Garrison Access 4 | . . . 2 . . . . . 1 . . . 1 . . . . . . . . . . Terminal Hacks 42 | . 1 2 5 . 7 . . . 1 6 1 4 2 1 . 11 . . . . 1 . . Record 5 | . . . . . . . . . . . 1 4 . . . . . . . . . . . Part Schematic 5 | . 1 1 1 . 2 . . . . . . . . . . . . . . . . . . Robot Analysis 2 | . . . 1 . . . . . . . . . . 1 . . . . . . . . . Prototype ID Bank 5 | . . 1 1 . 2 . . . . . . . . . . 1 . . . . . . . Open Door 6 | . . . . . . . . . 1 5 . . . . . . . . . . . . . Branch Access Points 1 | . . . . . . . . . . . . . . . . 1 . . . . . . . Machine Index 1 | . . . . . . . . . . . . . . . . 1 . . . . . . . Scanalyzer Index 1 | . . . . . . . . . . . . . . . . 1 . . . . . . . Unreport Threat 7 | . . . 2 . 3 . . . . . . . . . . 2 . . . . . . . Locate Traps 5 | . . . . . . . . . . 1 . . 1 . . 3 . . . . . . . Disarm Traps 1 | . . . . . . . . . . . . . 1 . . . . . . . . . . Zone Layout 3 | . . . . . . . . . . . . . . . . 2 . . . . 1 . . Fabricator Hacks 8 | . . . . . . 1 . . . . . . . . . 3 . . . . 4 . . Load Schematic 5 | . . . . . . 1 . . . . . . . . . 2 . . . . 2 . . Build 3 | . . . . . . . . . . . . . . . . 1 . . . . 2 . . Repair Station Hacks 5 | . . . . . . 2 . . 1 . . . . . . . . . . . 2 . . Scan Component 3 | . . . . . . 1 . . 1 . . . . . . . . . . . 1 . . Repair 2 | . . . . . . 1 . . . . . . . . . . . . . . 1 . . Recycling Unit Hacks 6 | . 1 1 1 . . . . . 1 . . . . 2 . . . . . . . . . Report Inventory 5 | . 1 1 1 . . . . . 1 . . . . 1 . . . . . . . . . Retrieve Matter 1 | . . . . . . . . . . . . . . 1 . . . . . . . . . Scanalyzer 11 | . . 2 . . . . . . . . . . . . . 9 . . . . . . . Insert Component 4 | . . 1 . . . . . . . . . . . . . 3 . . . . . . . Analyze 7 | . . 1 . . . . . . . . . . . . . 6 . . . . . . . Garrison Access Hacks 3 | . . . 1 . . . . . 1 . . . 1 . . . . . . . . . . Unlock Access 1 | . . . 1 . . . . . . . . . . . . . . . . . . . . Seal Access 2 | . . . . . . . . . 1 . . . 1 . . . . . . . . . . Unauthorized Hacks 20 | . 3 3 4 . . . . . . . . . 1 2 . 4 . . . . 3 . . Terminals 14 | . 2 2 3 . . . . . . . . . 1 . . 3 . . . . 3 . . Botnet 14 | . 2 2 3 . . . . . . . . . 1 . . 3 . . . . 3 . . Fabricators 1 | . . . . . . . . . . . . . . . . 1 . . . . . . . Recompile 1 | . . . . . . . . . . . . . . . . 1 . . . . . . . Repair Stations . | . . . . . . . . . . . . . . . . . . . . . . . . Recycling Units 5 | . 1 1 1 . . . . . . . . . . 2 . . . . . . . . . Reject 1 | . . . . . . . . . . . . . . 1 . . . . . . . . . Mask 1 | . . . . . . . . . . . . . . 1 . . . . . . . . . Tunnel 3 | . 1 1 1 . . . . . . . . . . . . . . . . . . . . Scanalyzers . | . . . . . . . . . . . . . . . . . . . . . . . . Garrison Access . | . . . . . . . . . . . . . . . . . . . . . . . . Data Cores Recovered . | . . . . . . . . . . . . . . . . . . . . . . . . Used . | . . . . . . . . . . . . . . . . . . . . . . . . Hacking Detections 60 | . 6 5 6 2 4 5 . . 4 7 1 . 1 3 . 8 . . . . 8 . . Full Trace Events 8 | . 1 . 1 . . 2 . . . 1 . . . . . 2 . . . . 1 . . Feedback Events 1 | . 1 . . . . . . . . . . . . . . . . . . . . . . Corruption 1 | . 1 . . . . . . . . . . . . . . . . . . . . . . Feedback Blocked . | . . . . . . . . . . . . . . . . . . . . . . . . Robot Schematics Acquired . | . . . . . . . . . . . . . . . . . . . . . . . . Robots Built . | . . . . . . . . . . . . . . . . . . . . . . . . Authchips . | . . . . . . . . . . . . . . . . . . . . . . . . Time . | . . . . . . . . . . . . . . . . . . . . . . . . Total Robot Build Rating . | . . . . . . . . . . . . . . . . . . . . . . . . Part Schematics Acquired 7 | . 1 2 . . 2 . . . . . . . . . . 2 . . . . . . . Parts Built 3 | . . . . . . . . . . . . . . . . 1 . . . . 2 . . Authchips 1 | . . . . . . . . . . . . . . . . . . . . . 1 . . Time 445 | . . . . . . . . . . . . . . . . 102 . . . . 343 . . Total Part Build Rating 25 | . . . . . . . . . . . . . . . . 8 . . . . 17 . . Parts Repaired 1 | . . . . . . 1 . . . . . . . . . . . . . . . . . Time 180 | . . . . . . 44 . . . . . . . . . . . . . . 136 . . Parts Recycled . | . . . . . . . . . . . . . . . . . . . . . . . . Recycled Matter . | . . . . . . . . . . . . . . . . . . . . . . . . Retrieved Matter . | . . . . . . . . . . . . . . . . . . . . . . . . Retrieved Components . | . . . . . . . . . . . . . . . . . . . . . . . . Parts Scanalyzed 3 | . . 1 . . . . . . . . . . . . . 2 . . . . . . . Part Schematics Acquired 3 | . . 1 . . . . . . . . . . . . . 2 . . . . . . . Parts Damaged 1 | . . . . . . . . . . . . . . . . 1 . . . . . . . Bothacking | -11 -10 -9 -8 -8 -8 -7 -6 -6 -6 -6 -6 -6 -6 -5 -5 -5 -5 -5 -5 -4 -4 -4 -4 ------------ Run | Yrd Mat Mat Mat Gar Mat Fac Fac Was Fac Ext Cet Arc Hub Fac Was Fac Upp Upp War Pro Fac Upp Upp Used RIF Installer 1 | . . . . 1 . . . . . . . . . . . . . . . . . . . Robots Hacked 1 | . . . 1 . . . . . . . . . . . . . . . . . . . . Non-combat . | . . . . . . . . . . . . . . . . . . . . . . . . Combat 1 | . . . 1 . . . . . . . . . . . . . . . . . . . . Robot Hacks Applied 1 | . . . 1 . . . . . . . . . . . . . . . . . . . . parse_system 1 | . . . 1 . . . . . . . . . . . . . . . . . . . . Relay Couplers Released 3 | . . . . . . . . . . . . . 3 . . . . . . . . . . Programmers 3 | . . . . . . . . . . . . . 3 . . . . . . . . . . Fabnet Peak Effective % . | . . . . . . . . . . . . . . . . . . . . . . . . Robots Rewired 11 | . . . . . . . . . . 10 . . . . . . . 1 . . . . . Allies Hacked 2 | . . . . . . . . . . . . . . . . 2 . . . . . . . Hacks Repelled . | . . . . . . . . . . . . . . . . . . . . . . . . Allies | -11 -10 -9 -8 -8 -8 -7 -6 -6 -6 -6 -6 -6 -6 -5 -5 -5 -5 -5 -5 -4 -4 -4 -4 -------- Run | Yrd Mat Mat Mat Gar Mat Fac Fac Was Fac Ext Cet Arc Hub Fac Was Fac Upp Upp War Pro Fac Upp Upp Total Allies 41 | . . . . . . . . . . 20 . . . . 20 . . 1 . . . . . Largest Group 20 | . . . . . . . . . . 8 4 . . . 20 16 . 1 . . . . . Highest-Rated Group 726 | . . . . . . . . . . 381 91 . . . 726 605 . 30 . . . . . Highest-Rated Ally 159 | . . . . . . . . . . 159 31 . . . 50 50 . 30 . . . . . Total Orders . | . . . . . . . . . . . . . . . . . . . . . . . . Ally Attacks 190 | . . . . . . . . . . 111 9 . . . . 66 . 4 . . . . . Total Damage 4632 | . . . . . . . . . . 2355 310 . . . . 1859 . 108 . . . . . Kills 26 | . . . . . . . . . . 14 1 . . . . 10 . 1 . . . . . Allies Corrupted 1 | . . . . . . . . . . . . . . . . 1 . . . . . . . Allies Melted 1 | . . . . . . . . . . 1 . . . . . . . . . . . . . Intel | -11 -10 -9 -8 -8 -8 -7 -6 -6 -6 -6 -6 -6 -6 -5 -5 -5 -5 -5 -5 -4 -4 -4 -4 ------- Run | Yrd Mat Mat Mat Gar Mat Fac Fac Was Fac Ext Cet Arc Hub Fac Was Fac Upp Upp War Pro Fac Upp Upp Robot Analysis Total 2 | . . . 1 . . . . . . . . . . 1 . . . . . . . . . Derelict Logs Recovered 4 | . . . . . . . . . . . . . . . . . 1 2 . . . 1 . Drone Launches . | . . . . . . . . . . . . . . . . . . . . . . . . Drone Recoveries . | . . . . . . . . . . . . . . . . . . . . . . . . Exploration | -11 -10 -9 -8 -8 -8 -7 -6 -6 -6 -6 -6 -6 -6 -5 -5 -5 -5 -5 -5 -4 -4 -4 -4 ------------- Run | Yrd Mat Mat Mat Gar Mat Fac Fac Was Fac Ext Cet Arc Hub Fac Was Fac Upp Upp War Pro Fac Upp Upp Turns Passed 20046 | 5 756 1032 1768 398 964 1684 376 199 801 1114 888 577 721 499 356 1848 637 542 59 289 2441 1203 889 Spaces Moved 9319 | 1 446 453 707 223 395 762 234 118 546 610 454 260 219 232 181 633 299 276 37 176 1113 541 403 Core 1 | . . . . . . . . . . . . . . . . . . . . . . . 1 Treads 5807 | . 14 409 685 11 59 160 . . . 8 92 260 219 232 181 633 299 276 37 176 1113 541 402 Legs 2481 | . . . . 163 336 120 234 118 546 602 362 . . . . . . . . . . . . Wheels 1030 | 1 432 44 22 49 . 482 . . . . . . . . . . . . . . . . . Hover . | . . . . . . . . . . . . . . . . . . . . . . . . Flight . | . . . . . . . . . . . . . . . . . . . . . . . . Fastest Speed 50 | 95 95 105 125 120 120 120 90 90 90 90 108 160 160 163 163 163 163 163 163 163 156 157 50 Average Speed 154 | 95 125 154 158 126 185 161 116 90 90 105 124 160 161 163 163 234 181 163 163 163 160 181 169 Slowest Speed 320 | 95 160 160 160 260 240 320 184 90 180 240 187 160 163 163 163 243 243 163 163 163 162 240 240 Overloaded Moves . | . . . . . . . . . . . . . . . . . . . . . . . . Propulsion Burnouts . | . . . . . . . . . . . . . . . . . . . . . . . . Robots Hopped . | . . . . . . . . . . . . . . . . . . . . . . . . Cave-ins Triggered 4 | . . . . . . . . . . . . . . . . . . . . . . . 4 Exploration Rate (%) 45 | 2 61 54 64 30 40 26 7 76 16 77 95 88 34 8 86 24 46 50 10 45 31 79 48 Regions Visited 23 Branch Regions 10 Pre-discovered Areas 4 | . 1 1 1 . . . . . . . . . . . . . . . . . . 1 . Known Exits Taken 3 | . . . 1 . . . . . . . . . . . . 1 . . . 1 . . . Unknown Exits Taken 15 | 1 1 1 . . 1 1 . . 1 1 1 1 1 . . . 1 1 1 . 1 1 . Scrap Searched 5 | . . . . . . . . . . . . . . . . . 1 1 . . . 1 2 Spaces Dug 153 | . . . 4 . . 9 4 5 3 4 2 1 27 5 . 21 . . . . 20 2 46 Terrain Destroyed 1282 | . . 20 58 . 5 81 4 5 4 7 42 6 231 9 21 135 49 69 . . 478 12 46 Melee 100 | . . . 4 . . 8 4 5 3 4 2 1 3 3 . 8 . . . . 7 2 46 Projectile 180 | . . . . . 5 10 . . 1 3 . 5 50 6 . 31 8 4 . . 57 . . AOE 1000 | . . 20 54 . . 63 . . . . 40 . 177 . 21 95 41 65 . . 414 10 . Terrain Rammed . | . . . . . . . . . . . . . . . . . . . . . . . . Walls Destroyed . | . . . . . . . . . . . . . . . . . . . . . . . . Machines Disabled . | . . . . . . . . . . . . . . . . . . . . . . . . Actions | -11 -10 -9 -8 -8 -8 -7 -6 -6 -6 -6 -6 -6 -6 -5 -5 -5 -5 -5 -5 -4 -4 -4 -4 --------- Run | Yrd Mat Mat Mat Gar Mat Fac Fac Was Fac Ext Cet Arc Hub Fac Was Fac Upp Upp War Pro Fac Upp Upp Total 13029 | 3 568 626 1125 293 559 1044 337 196 810 915 636 378 445 316 247 829 356 352 36 178 1508 746 526 Wait 1682 | . 32 15 216 26 66 126 43 72 219 51 65 67 131 42 30 71 24 57 . 3 95 176 55 Move 9297 | . 445 452 707 221 394 761 234 117 545 609 453 259 218 232 180 632 298 275 36 175 1112 540 402 Hop . | . . . . . . . . . . . . . . . . . . . . . . . . Pick Up 286 | . 17 24 32 9 25 21 17 . 4 20 11 6 5 5 8 15 5 2 . . 50 5 5 Fast Attach 57 | . 3 . 2 4 1 4 3 . 3 3 2 6 . 3 2 2 . . . . 9 7 3 Attach 150 | . 2 14 20 4 7 12 2 . 6 11 9 . 3 4 1 4 7 3 . . 32 6 3 Detach 20 | . . . 1 . 1 . 1 . 4 5 . . . 1 2 1 . . . . 3 1 . Swap 225 | 3 10 12 20 4 17 9 9 . 3 28 21 7 14 8 7 11 4 2 . . 35 . 1 Drop 202 | . 12 15 21 5 15 12 23 . 5 14 8 11 3 4 17 8 1 . . . 26 . 2 Fire 726 | . 47 94 89 17 30 46 1 2 12 44 33 12 68 13 . 69 17 8 . . 124 . . Melee 251 | . . . 15 1 3 37 4 5 9 33 34 10 3 4 . 10 . . . . 20 9 54 Ram . | . . . . . . . . . . . . . . . . . . . . . . . . Kick . | . . . . . . . . . . . . . . . . . . . . . . . . Crush 14 | . . . 2 2 . . . . . . . . . . . 6 . . . . 2 2 . Escape Stasis 17 | . . . . . . 16 . . . . . . . . . . . . . . . . 1 Rewire 102 | . . . . . . . . . . 97 . . . . . . . 5 . . . . . Trap . | . . . . . . . . . . . . . . . . . . . . . . . . Miscellaneous . | . . . . . . . . . . . . . . . . . . . . . . . . Route ------- -11/Scrapyard -10/Materials (discovered 3 exits: *Mat x2 / [*Min]) -9/Materials (discovered 2 exits: *Mat / [*Min]) -8/Materials -8/Garrison -8/Materials -7/Factory -6/Factory -6/Waste -6/Factory -6/Extension (discovered 3 exits: *Fac x2 / *Cet) -6/Cetus (discovered 3 exits: *Fac x2 / *Arc) -6/Archives (discovered 3 exits: *Fac / *Hub x2) -6/Hub_04(d) -5/Factory -5/Waste -5/Factory (discovered 3 exits: *Fac / *Upp x2) -5/Upper Caves -5/Upper Caves (discovered 2 exits: Fac / [*War]) -5/Warlord -4/Proximity Caves -4/Factory (discovered 3 exits: Res / [*Upp x2]) -4/Upper Caves -4/Upper Caves History --------- Turn | Location | Event 6 | -11/Scrapyard | Discovered new exit (range 0) 6 | -11/Scrapyard | Entered Materials 246 | -10/Materials | Discovered new exit (range 8) 316 | -10/Materials | Build established: Mutant 348 | -10/Materials | Discovered new exit (range 12) 688 | -10/Materials | Discovered new exit (range 15) 762 | -10/Materials | Entered another Materials area 762 | -9/Materials | Evolved 2 slots: Propulsion x1, Utility x1 1178 | -9/Materials | Build established: Scavenger-Mutant 1330 | -9/Materials | Lost 6 parts (1p3n1u1w) 1462 | -9/Materials | Discovered new exit (range 8) 1610 | -9/Materials | Core integrity fell below 50% 1767 | -9/Materials | Discovered new exit (range 10) 1794 | -9/Materials | Entered another Materials area 1794 | -8/Materials | Evolved 2 slots: Weapon x2 2115 | -8/Materials | Build established: Scavenger-Gunner 2594 | -8/Materials | First assault squad dispatched 3120 | -8/Materials | Destroyed 11 combat bots 3121 | -8/Materials | Lost 7 parts (1p2n1u3w) 3418 | -8/Materials | Lost 5 parts (3n2w) 3495 | -8/Materials | Lost 3 parts (1n2w) 3562 | -8/Materials | Identified exit to Garrison 3562 | -8/Materials | Entered Garrison 3575 | -8/Garrison | Installed Relay Interface Framework 3695 | -8/Garrison | Core integrity fell below 50% 3698 | -8/Garrison | Lost 3 parts (3n) 3752 | -8/Garrison | Triggered checkpoint 3860 | -8/Garrison | Triggered checkpoint 3905 | -8/Garrison | Discovered new exit (range 13) 3960 | -8/Garrison | Entered Materials 4408 | -8/Materials | Build established: Scavenger-Tank 4735 | -8/Materials | Lost 3 parts (3w) 4749 | -8/Materials | Core integrity fell below 20% 4888 | -8/Materials | Discovered new exit (range 7) 4924 | -8/Materials | Entered Factory 4924 | -7/Factory | Evolved 2 slots: Propulsion x1, Utility x1 5430 | -7/Factory | Garrison activated, responded to threat 5840 | -7/Factory | Build established: Tank 5860 | -7/Factory | Repaired Imp. Cooling System 6191 | -7/Factory | Lost 7 parts (3n2u2w) 6358 | -7/Factory | System corruption reached 10% 6477 | -7/Factory | Discovered new exit (range 12) 6608 | -7/Factory | Entered another Factory area 6608 | -6/Factory | Evolved 2 slots: Power x1, Propulsion x1 6960 | -6/Factory | Build established: Gunner 6984 | -6/Factory | Sucked down chute 6984 | -6/Factory | Entered Waste 7009 | -6/Waste | Spotted C-40 Crusher 7034 | -6/Waste | Spotted C-40 Crusher 7039 | -6/Waste | Spotted C-40 Crusher 7045 | -6/Waste | Spotted C-40 Crusher 7060 | -6/Waste | Spotted C-40 Crusher 7158 | -6/Waste | Discovered new exit (range 16) 7183 | -6/Waste | Entered Factory 7567 | -6/Factory | Discovered new exit (range 6) 7984 | -6/Factory | Entered Extension 8078 | -6/Extension | Rescued A7 8100 | -6/Extension | Rescued a captive Derelict 8209 | -6/Extension | Rescued a captive Derelict 8324 | -6/Extension | Rescued a captive Derelict 8325 | -6/Extension | Rescued a captive Derelict 8388 | -6/Extension | Rescued a captive Derelict 8391 | -6/Extension | Spotted B-75 Beast 8401 | -6/Extension | Spotted B-75 Beast 8422 | -6/Extension | Allies destroyed B-75 Beast 8445 | -6/Extension | Destroyed B-75 Beast 8463 | -6/Extension | Extracted ID and sensor layout for unrecognized location from A7's data core 8479 | -6/Extension | Lost 6 allies 8506 | -6/Extension | Discovered new exit (range 3) 8560 | -6/Extension | Rescued a captive Derelict 8561 | -6/Extension | Rescued a captive Derelict 8649 | -6/Extension | Lost 4 parts (1p1u2w) 8781 | -6/Extension | Build established: Scavenger-Gunner 8929 | -6/Extension | Rescued a captive Derelict 8933 | -6/Extension | Rescued a captive Derelict 9019 | -6/Extension | Energy Cycler disabled 9050 | -6/Extension | Lost 4 allies 9058 | -6/Extension | Discovered new exit (range 10) 9059 | -6/Extension | Discovered new exit (range 6) 9098 | -6/Extension | Entered Cetus 9098 | -6/Cetus | Accompanied by 4 allies 9116 | -6/Cetus | Spotted Cetus Guard 9116 | -6/Cetus | Spotted Cetus Guard 9118 | -6/Cetus | Spotted Cetus Guard 9128 | -6/Cetus | Spotted Cetus Guard 9143 | -6/Cetus | Destroyed Cetus Guard 9154 | -6/Cetus | Destroyed Cetus Guard 9155 | -6/Cetus | Allies destroyed Cetus Guard 9164 | -6/Cetus | Destroyed Cetus Guard 9177 | -6/Cetus | Lost 4 parts (2p1n1u) 9192 | -6/Cetus | Lost 4 allies 9271 | -6/Cetus | Discovered new exit (range 16) 9628 | -6/Cetus | Discovered new exit (range 16) 9665 | -6/Cetus | Spotted Cetus Guard 9707 | -6/Cetus | System corruption reached 10% 9714 | -6/Cetus | Spotted Cetus Guard 9719 | -6/Cetus | Spotted Cetus Guard 9721 | -6/Cetus | Spotted Cetus Guard 9744 | -6/Cetus | Destroyed Cetus Guard 9747 | -6/Cetus | Destroyed Cetus Guard 9770 | -6/Cetus | Destroyed Cetus Guard 9782 | -6/Cetus | Destroyed Cetus Guard 9782 | -6/Cetus | Cetus Manufacturing Module disabled 9797 | -6/Cetus | Lost 3 parts (2n1w) 9900 | -6/Cetus | Destroyed 7 combat bots 9917 | -6/Cetus | Discovered new exit (range 15) 9925 | -6/Cetus | Met Revision 17 9986 | -6/Cetus | Entered Archives 10138 | -6/Archives | Discovered new exit (range 14) 10163 | -6/Archives | Discovered new exit (range 15) 10182 | -6/Archives | Unable to access archive contents 10320 | -6/Archives | Discovered new exit (range 16) 10563 | -6/Archives | Entered Hub_04(d) 11003 | -6/Hub_04(d) | Destroyed 7 combat bots 11106 | -6/Hub_04(d) | Garrison activated, responded to threat 11113 | -6/Hub_04(d) | Discovered new exit (range 16) 11140 | -6/Hub_04(d) | Core integrity fell below 50% 11263 | -6/Hub_04(d) | First assault squad dispatched 11280 | -6/Hub_04(d) | Network Hub disabled 11284 | -6/Hub_04(d) | Entered Factory 11284 | -5/Factory | Evolved 2 slots: Utility x2 11401 | -5/Factory | Discovered new exit (range 15) 11577 | -5/Factory | Build established: Scavenger-Tank 11783 | -5/Factory | Sucked down chute 11783 | -5/Factory | Entered Waste 11784 | -5/Waste | Joined by Warlord forces that had cleared the area 11950 | -5/Waste | Found Damper Plating 11998 | -5/Waste | Found Unknown Launcher 11999 | -5/Waste | Identified Gamma Bomb Array 12002 | -5/Waste | Found Fusion Bomb Launcher 12020 | -5/Waste | Found Damper Plating 12040 | -5/Waste | Murdered 4 allies 12107 | -5/Waste | Discovered new exit (range 12) 12139 | -5/Waste | Entered Factory 12139 | -5/Factory | Accompanied by 16 allies 12273 | -5/Factory | Lost 8 allies 12609 | -5/Factory | Identified exit to Upper Caves 12655 | -5/Factory | Lost 3 allies 13074 | -5/Factory | Lost 4 allies 13475 | -5/Factory | Discovered new exit (range 10) 13672 | -5/Factory | First assault squad dispatched 13760 | -5/Factory | Cargo convoy interrupted 13858 | -5/Factory | Destroyed 7 combat bots 13872 | -5/Factory | Fabricated Centrium Heavy Treads (x1) 13987 | -5/Factory | Entered Upper Caves 14210 | -5/Upper Caves | Lost 4 parts (1n2u1w) 14231 | -5/Upper Caves | Destroyed 13 combat bots 14367 | -5/Upper Caves | Learned 4 Factory zone layouts 14608 | -5/Upper Caves | Discovered new exit (range 12) 14624 | -5/Upper Caves | Entered another Upper Caves area 14973 | -5/Upper Caves | Attracted the attention of an 0b10 outpost 15006 | -5/Upper Caves | Destroyed 7 combat bots 15011 | -5/Upper Caves | Lost 3 parts (1p1n1w) 15023 | -5/Upper Caves | Identified exit to Factory 15119 | -5/Upper Caves | Learned Factory terminal intel 15139 | -5/Upper Caves | Discovered new exit (range 15) 15166 | -5/Upper Caves | Entered Warlord 15212 | -5/Warlord | Discovered new exit (range 9) 15225 | -5/Warlord | Entered Proximity Caves 15506 | -4/Proximity Caves | Discovered exit to Factory (range 6) 15514 | -4/Proximity Caves | Entered Factory 15514 | -4/Factory | Evolved 2 slots: Propulsion x1, Utility x1 15515 | -4/Factory | Identified exit to Research 15516 | -4/Factory | Loaded intel: 26 terminal locations 15873 | -4/Factory | Lost 4 parts (1p1n1u1w) 16025 | -4/Factory | Found Prototype Slashing Weapon 16025 | -4/Factory | Identified Vibroblade 16162 | -4/Factory | Lost 3 parts (2u1w) 16725 | -4/Factory | Fabricated Biometal Heavy Treads? 16876 | -4/Factory | System corruption reached 10% 16917 | -4/Factory | Build established: Tank 17092 | -4/Factory | Garrison activated, responded to threat 17134 | -4/Factory | Fabricated Centrium Heavy Treads (x1) 17151 | -4/Factory | Lost 5 parts (1p1n3u) 17293 | -4/Factory | First assault squad dispatched 17412 | -4/Factory | Destroyed 9 combat bots 17412 | -4/Factory | Lost 5 parts (2p1n1u1w) 17443 | -4/Factory | Build established: Scavenger-Tank 17873 | -4/Factory | Lost 6 parts (1n1u4w) 17901 | -4/Factory | Garrison activated, responded to threat 17928 | -4/Factory | Discovered new exit (range 14) 17941 | -4/Factory | Core integrity fell below 50% 17949 | -4/Factory | Discovered new exit (range 15) 17955 | -4/Factory | Entered Upper Caves 17984 | -4/Upper Caves | Lost 7 parts (1p2n1u3w) 18206 | -4/Upper Caves | Build established: Mutant 18627 | -4/Upper Caves | Lost 6 parts (3n1u2w) 18699 | -4/Upper Caves | Spotted B-86 Titan 18732 | -4/Upper Caves | Learned location of Armory (-4) 18750 | -4/Upper Caves | Lost 3 parts (2n1w) 18785 | -4/Upper Caves | Core integrity fell below 20% 18973 | -4/Upper Caves | Build established: Scavenger-Mutant 19150 | -4/Upper Caves | Discovered new exit (range 7) 19158 | -4/Upper Caves | Entered another Upper Caves area 19595 | -4/Upper Caves | Build established: Derelict-Mutant 19668 | -4/Upper Caves | Spotted B-86 Titan 19746 | -4/Upper Caves | Lost 3 parts (2p1u) 19893 | -4/Upper Caves | Crushed by falling debris 19925 | -4/Upper Caves | Crushed by falling debris 19925 | -4/Upper Caves | System corruption reached 30% 19938 | -4/Upper Caves | Crushed by falling debris 19963 | -4/Upper Caves | Crushed by falling debris 19994 | -4/Upper Caves | Lost 6 parts (4u2w) 20047 | -4/Upper Caves | Released all parts (2) 20047 | -4/Upper Caves | Destroyed by S-27 Virus with Autogun Last Messages --------------- 19963_ Crushed by falling debris. 19963_ Graphene Brace destroyed. 19963_ System corrupted by crushing effect (+1). 19966_ The unstable cave ceiling collapses. 19969_ System corrupted: Matter fused (-10). 19983_ The unstable cave ceiling collapses. 19986_ System corrupted: Component data lost. 20006_ System corrupted: IFF burst signal emitted. 20026_ System corrupted: Energy discharge (-4). 20033_ Hvy. Siege Treads destroyed. 20036_ Tesla Rifle destroyed. 20038_ Phasing Sabre destroyed. 20038_ Imp. Arc Projector destroyed. 20039_ S-27 Virus destroyed. 20043_ System corrupted: Energy discharge (-5). 20047_ Autogun fries itself beyond repair. 20047_ Centrium Heavy Treads destroyed. 20047_ Released Imp. Armor Integrity Analyzer. 20047_ Released Huge Storage Unit. Map ----- +----------------------------------------------------+ | ??????????????????????????????????????????????? | | ??????????????????????????????????????????????? | | ??????????????????????????????????????????????? | | ??????????????????????????????????????????????? | | ??????????????????????????????????????????????? | | ??????????????????????????????????????????????? | | ??????????????????????????????????????????????? | | ??????????????????????????????????????????????? | | ??????????????????????????????????????????????? | | ??????????????????????????????????????????????? | | ??????????????????????????????????????????????? | | ??????????????????????????????????????????????? | | ??????????????????????????????????????????????? | | ??????????????????????????????????????????????? | | ??????????????????????????????????????????????? | | ??????????????????????????????????????????????? | | ??????????????????????????????????????????????? | | ??????????????????###?????????????????????????? | | ??????????????????# ?????????????????????????? | | ??????????????????# ?????????????????????????? | | ??????????????????# ??????????????? ?????????? | | ??????????????????# ####?????????? ????????? | | ???????????????#### # ##????????? ?????????? | | ???????????????# #???????? ""???????? | | ???????????????# / ##??????# "" " ??????? | | ????????????????# ]!@[ ##??### " ???????? | | ????????????????#####![[ ### ???????? | | ?????????????????####!![ ???????? | | ?????????????????# [[ ???????? | | ?????????????????# ???????? | | ????????????????## s ## ??????????? | | ????????????????# % ##?????????????? | | ????????????????###### s s#####??????????? | | ?????????????????????# s ############ | | ?????????????????????# # | | ?????????????????????# ## ### # | | ????????????????????# ######?## ########?? | | ????????????????????# ##???????# ##???????? | | ????????????????????## ##????????# ##??????? | | ?????????????????????###????????## #??????? | | ?????????????????????????????#### #??????? | | ????????????????????????????## ##??????? | | ????????????????????????????# ##???????? | | ????????????????????????????###"######????????? | | ??????????????????????????????## ##???????????? | | ???????????????????????????????## ##??????????? | | ????????????????????????????????## ##?????????? | | ?????????????????????????????????## ##????????? | | ??????????????????????????????????## ##???????? | | ???????????????????????????????????#####??????? | +----------------------------------------------------+ Best States ------------- Heat Dissipation 74 Energy Generation 45 Energy Capacity 990 Matter Stores 400 Matter Capacity 400 Sight Range 22 Robot Scan Range 16 Terrain Scan Density 10 Jamming Range 14 Armor Coverage 3200 Resistance: EM 90 Weapon Cycling 20 Evasion (%) 57 Targeting Accuracy 8 Core Analysis 6 Armor Integrity Analysis 40 Recoil Reduction 6 Offensive Hacking 14 Defensive Hacking 14 Authchip Count 1 Item Schematics ----------------- Huge Storage Unit | -10/Materials | Hacked Med. Storage Unit | -9/Materials | Hacked Mni. Grenade Launcher | -9/Materials | Scanalyzed Adv. Treads | -8/Materials | Hacked Arm. Treads | -8/Materials | Hacked Imp. Cooling System | -5/Factory | Scanalyzed Centrium Heavy Treads | -5/Factory | Scanalyzed Robot Schematics ------------------ None Fabricated ------------ Centrium Heavy Treads | x1 | -5/Factory Biometal Heavy Treads | x1 | -4/Factory | Preloaded, Authchip Centrium Heavy Treads | x1 | -4/Factory Alien Tech Used ----------------- None Achievements -------------- Collateral Damage We Are Legion Challenges ------------ None Game ------ Seed TargetingSmallSink Manual? 0 Play Time 04:45:24 Cumulative 74.6 hours Start 2024.05.04 @ 10:11:25 End 2024.05.09 @ 09:56:37 Sessions 14 Manual Loads 0 Difficulty Rogue Special Mode None Game No. 41 Rogue 41 Adventurer 0 Explorer 0 Win Type - Total 2 Types 1/0/0/1/0/0/0/0/0 Lore% 45 Gallery% 49 Achievement% 46 Wizard Run 0 Options --------- Layout 1 ASCII 0 Keyboard 0 Movement Numpad Keybinds 0 Fullscreen 2 Font 24/Smallcaps Map View 50x35 Zoom Use 0% Tactical HUD 1 Map Filters NONE Filters NONE Steam 1 RUN: eafc8338-85b3-484b-8197-c78e82f0d11c